[Event "FIDE WSCC 50 2022"]
[Site "Assisi"]
[Date "2022.11.23"]
[Round "8.6"]
[White "de Francesco, Klaus"]
[Black "Pavlovic, Milos"]
[Result "0-1"]
[ECO "D95"]
[WhiteElo "2171"]
[BlackElo "2447"]
[Annotator "TA"]
[PlyCount "66"]
[EventDate "2022.11.14"]
[EventType "swiss"]
[EventCountry "ITA"]
[SourceTitle "playchess.com"]
[Source "ChessBase"]
[SourceQuality "1"]
[TimeControl "40/5400+30:1800+30"]

{[%evp 15,66,-23,-22,-30,-24,-29,-25,-33,19,0,0,-5,0,-31,0,0,0,-13,-13,-39,-42,-40,-35,-76,-78,-73,-73,-87,-87,-77,-77,-272,-293,-287,-280,-406,-398,-344,-342,-477,-493,-571,-552,-575,-558,-754,-736,-865,-862,-853,-830,-801,-707]} 1. d4 {[%emt 0:00:05]} d5 {[%emt 0:01:29]} 2. Nf3 {[%emt 0:00:17]} Nf6 {[%emt 0:00:31]} 3. e3 {[%emt 0:01:23]} g6 {[%emt 0:04:45]} 4. c4 {[%emt 0:00:12]} Bg7 {[%emt 0:00:07]} 5. Nc3 {[%emt 0:00:15]} O-O {[%emt 0:00:13]} 6. Qb3 {[%emt 0:00:31]} e6 {[%emt 0:03:04]} 7. Bd2 {[%emt 0:02:04]} b6 {[%emt 0:00:38]} 8. cxd5 {[%emt 0:01:36]} exd5 {[%emt 0:00:33]} 9. Rc1 {[%emt 0:01:22] D95: Grünfeld: 4 Nf3 Bg7 5 e3 0-0 6 Qb3.} Bb7 {[%emt 0:00:22]} 10. Be2 {[%emt 0:01:05]} Nbd7 {[%emt 0:04:58]} 11. O-O {[%emt 0:00:35] Black has an edge.} a6 {[%emt 0:07:18]} (11... c6 $15) 12. Rfd1 {[%emt 0:02:00]} Re8 {[%emt 0:00:06]} 13. Be1 {[%emt 0:00:58] [#]} Bf8 $146 {[%emt 0:03:33]} ({Predecessor:} 13... Nf8 14. Ne5 Ne6 15. f4 Rb8 16. Bf3 Ne4 17. Nxe4 dxe4 18. Be2 Bf8 19. Nc6 Bxc6 20. Rxc6 {1-0 (62) Khoroshev,N (2327)-Kazakov,M (2513) Chess.com INT 2022}) 14. a4 {[%emt 0:01:33]} Bd6 {[%emt 0:08:31]} 15. a5 {[%emt 0:03:54]} b5 {[%emt 0:00:06]} 16. Na4 {[%emt 0:04:05]} Ne4 {[%emt 0:01:53] Against Nc5} (16... bxa4 17. Qxb7 Rb8 18. Qxa6 $16) 17. Nd2 {[%emt 0:00:42]} Rb8 {[%emt 0:16:29]} ({But not} 17... bxa4 18. Qxb7 Nef6 19. Qc6 $16 (19. Bxa6 Re6 $11)) 18. Nc3 {[%emt 0:00:21]} Nef6 $36 {[%emt 0:00:47][%mdl 2048] Black has good play.} 19. Bf3 {[%emt 0:05:59][%cal Rc3d5]} c5 {[%emt 0:02:48]} 20. dxc5 {[%emt 0:00:21]} (20. Nxd5 $2 {is the wrong capture.} Nxd5 21. dxc5 Nxc5 22. Rxc5 Nxe3 23. fxe3 Bxc5 $19) 20... Nxc5 {[%emt 0:00:06]} 21. Qc2 {[%emt 0:01:19]} b4 {[%emt 0:03:29]} ({Much weaker is} 21... Qxa5 22. Nb3 Nxb3 23. Nxd5 $11) 22. Ne2 {[%emt 0:07:15]} Qxa5 {[%emt 0:00:47] Black is more active.} 23. Nc4 $2 {[%emt 0:01:39] This move loses the game for White.} dxc4 $19 {[%emt 0:19:17]} 24. Rxd6 {[%emt 0:01:01]} Bxf3 $1 {[%emt 0:00:11]} 25. Rxf6 {[%emt 0:04:12]} (25. gxf3 $142 Nd3 26. Rb1) 25... Bxe2 {[%emt 0:00:29]} 26. Qxe2 {[%emt 0:00:11]} c3 {[%emt 0:00:04]} 27. bxc3 {[%emt 0:08:25]} b3 {[%emt 0:00:31][%cal Bb4b3,Bb3b2][%mdl 32] White must now prevent ...Qa2. Black is clearly winning.} 28. Qc4 {[%emt 0:07:43]} Rb7 {[%emt 0:07:29] Threatens to win with ...b2.} 29. Rd6 {[%emt 0:01:01]} Rd8 {[%emt 0:10:03]} 30. Rxd8+ {[%emt 0:07:58]} Qxd8 {[%emt 0:00:01]} 31. Qxc5 {[%emt 0:01:03] [#]} b2 $1 {[%emt 0:00:02]} 32. Rb1 {[%emt 0:00:55] [#]} Qd3 $1 {[%emt 0:00:04]} 33. Qc8+ {[%emt 0:02:51]} Kg7 {[%emt 0:00:02] Weighted Error Value: White=0.50/Black=0.04 (flawless)} 0-1

[Event "FIDE WSCC 50 2022"]
[Site "Assisi"]
[Date "2022.11.23"]
[Round "8.7"]
[White "Vinter-Schou, Uffe"]
[Black "Berend, Elvira"]
[Result "1-0"]
[ECO "A13"]
[WhiteElo "2375"]
[BlackElo "2280"]
[Annotator "TA"]
[PlyCount "43"]
[EventDate "2022.11.14"]
[EventType "swiss"]
[EventCountry "ITA"]
[SourceTitle "playchess.com"]
[Source "ChessBase"]
[SourceQuality "1"]
[TimeControl "40/5400+30:1800+30"]

{[%evp 9,43,12,8,0,0,0,0,-21,-15,-35,-34,-56,-30,-45,-37,-39,-22,-53,-37,-26,119,110,109,121,308,319,322,316,384,379,199,369,461,386,2664,2608]} 1. c4 {[%emt 0:00:01] Kapnisis,Spyridon} e6 {[%emt 0:03:19]} 2. Nf3 {[%emt 0:01:14]} Nf6 {[%emt 0:00:20]} 3. e3 {[%emt 0:04:41]} d5 {[%emt 0:00:37]} 4. b3 {[%emt 0:00:11]} Bd6 {[%emt 0:01:24]} 5. Bb2 {[%emt 0:00:17]} O-O {[%emt 0:00:21]} 6. Nc3 {[%emt 0:00:17] A13: English Opening: 1...e6.} Re8 {[%emt 0:00:41] outshines the older 6...c6.} 7. Qc2 {[%emt 0:01:55]} c5 {[%emt 0:03:33]} 8. cxd5 {[%emt 0:08:00] The position is equal.} exd5 {[%emt 0:00:34] next ...Nc6 is good for Black.} 9. Bb5 {[%emt 0:01:16]} Nc6 {[%emt 0:00:17] [#]} 10. O-O $146 {[%emt 0:00:35]} ({Predecessor:} 10. Bxc6 bxc6 11. Na4 Ba6 12. Nxc5 Bxc5 13. Qxc5 Ne4 14. Qd4 f6 15. Rc1 c5 16. Rxc5 Nxc5 17. Qxc5 {1-0 (52) Pultinevicius,P (2519)-Gajewski,G (2616) Warsaw 2020 CBM 198 extra [Kapnisis,Spyridon]}) 10... Bg4 {[%emt 0:02:51]} 11. Bxc6 {[%emt 0:12:43]} bxc6 {[%emt 0:00:28]} 12. Ne2 {[%emt 0:00:18]} Ne4 {[%emt 0:07:38] [#] And now ...Bxf3 would win.} 13. Ng3 {[%emt 0:00:26]} Re6 {[%emt 0:15:25]} 14. d3 {[%emt 0:05:44][%cal Bd2d3,Bd3e4,Be4e5][%mdl 32]} Rh6 {[%emt 0:16:48]} 15. dxe4 $16 {[%emt 0:04:29]} Bxf3 {[%emt 0:00:12]} 16. e5 {[%emt 0:00:53][%cal Oe5d6]} (16. gxf3 $2 {is the wrong capture.} Qh4 17. Rfc1 Qxh2+ 18. Kf1 Bxg3 19. fxg3 Qh1+ 20. Ke2 Qg2+ 21. Kd3 Qxf3 22. Qxc5 Rh2 $19) 16... Bf8 {[%emt 0:18:05] Black cannot hold the game after this.} (16... Qh4 $16 17. h3 Bf8) 17. gxf3 $18 {[%emt 0:03:37]} Qh4 {[%emt 0:00:06][%csl Gh6][%cal Rh4h2] [#]} 18. Rfd1 {[%emt 0:02:32]} Qh3 {[%emt 0:02:56]} 19. Qf5 {[%emt 0:05:48]} Qxh2+ {[%emt 0:00:11]} 20. Kf1 {[%emt 0:00:01]} g6 {[%emt 0:00:18]} 21. Qd7 {[%emt 0:00:34]} Rh3 $2 {[%emt 0:01:12]} (21... Qh3+ 22. Qxh3 Rxh3) 22. e6 {[%emt 0:00:42] Weighted Error Value: White=0.14 (very precise) /Black=0.49} 1-0

[Event "FIDE WSCC 50 2022"]
[Site "Assisi"]
[Date "2022.11.23"]
[Round "8.8"]
[White "Tereladze, Sopio"]
[Black "Krizsany, Laszlo"]
[Result "1/2-1/2"]
[ECO "A43"]
[WhiteElo "2154"]
[BlackElo "2371"]
[Annotator "TA"]
[PlyCount "122"]
[EventDate "2022.11.14"]
[EventType "swiss"]
[EventCountry "ITA"]
[SourceTitle "playchess.com"]
[Source "ChessBase"]
[SourceQuality "1"]
[TimeControl "40/5400+30:1800+30"]

{[%evp 9,122,99,118,-13,-7,-14,-14,-27,-23,-22,-24,-25,-24,-77,-43,-50,-45,-65,0,6,6,-116,-47,-46,-52,-60,-34,-60,-43,-52,-67,-56,-65,-41,-17,-33,95,14,22,0,8,18,36,-19,25,23,39,5,241,232,233,249,242,200,226,184,451,236,229,233,237,233,187,176,272,255,226,226,340,332,350,198,198,182,213,217,205,206,188,118,115,95,175,173,218,46,99,59,145,132,114,51,66,58,65,25,32,39,39,10,8,8,8,8,8,8,8,8,8,8,8,8,8,8,8]} 1. d4 {[%emt 0:00:11]} c5 {[%emt 0:00:14]} 2. d5 {[%emt 0:00:44]} f5 {[%emt 0:00:10]} 3. g3 {[%emt 0:01:40]} Nf6 {[%emt 0:01:31]} 4. Bg2 {[%emt 0:00:04]} e5 {[%emt 0:01:31]} 5. dxe6 {[%emt 0:00:37]} d5 {[%emt 0:01:05][%cal Bd7d5,Bd5d4][%mdl 32] [#]} 6. e3 $146 {[%emt 0:06:59] A43: Schmid Benoni.} (6. Nh3 $16) ({Predecessor:} 6. c4 Bxe6 7. Nh3 Nc6 8. Nf4 Bf7 9. Nxd5 Nxd5 10. cxd5 Nb4 11. Nc3 Qa5 12. Bd2 {1-0 (29) Jarvenpaa,J (2268)-Tiitta,S (2203) Finland 2017}) 6... Nc6 $11 {[%emt 0:04:52] Inhibits c4.} 7. Ne2 {[%emt 0:00:36]} Bxe6 {[%emt 0:01:18][%cal Bc8e6,Be6f7,Bf7d5][%mdl 32]} 8. Nf4 {[%emt 0:01:50]} Bf7 {[%emt 0:00:52]} 9. Nc3 {[%emt 0:03:45]} d4 {[%emt 0:02:52]} 10. Nce2 {[%emt 0:01:52]} g5 {[%emt 0:07:30]} 11. Nh3 {[%emt 0:00:49]} (11. Bxc6+ $11 bxc6 12. Ng2) 11... Bd5 {[%emt 0:02:23]} (11... h6 {simplifies} 12. exd4 Qd7 13. O-O O-O-O) 12. e4 {[%emt 0:05:13]} Nxe4 {[%emt 0:16:07][%cal Oe4c3]} 13. Nxg5 {[%emt 0:07:46][%cal Oe2f4][%mdl 64]} Qa5+ {[%emt 0:04:09]} (13... Nxg5 14. Bxg5 Be7 15. Bxe7 Nxe7 16. Nf4 Qa5+ 17. c3 Bxg2 18. Qh5+ Ng6 19. Nxg2 $11) ({Black should try} 13... Nc3 $1 $15 14. bxc3 Bxg2) 14. Kf1 $1 {[%emt 0:06:30]} O-O-O {[%emt 0:01:49]} (14... Bxa2 $2 15. Nxe4 fxe4 16. Bxe4 $18) 15. Nxe4 {[%emt 0:15:49]} (15. Nf4 $1 $11 {was the only way to keep the balance.} Bc4+ 16. Nd3) 15... fxe4 {[%emt 0:01:22]} (15... Bxe4 $17 16. Bxe4 fxe4) 16. Nf4 $15 {[%emt 0:02:33]} Bc4+ {[%emt 0:05:32]} (16... Bxa2 17. b3 $16) 17. Kg1 {[%emt 0:01:49][%cal Ob2b3]} Re8 {[%emt 0:15:25]} (17... Bxa2 $2 18. Bxe4 Qa6 19. Ne6 $18) 18. Bd2 {[%emt 0:04:16]} Qc7 {[%emt 0:04:52]} 19. Qg4+ {[%emt 0:01:17]} Kb8 {[%emt 0:00:32]} 20. Re1 {[%emt 0:00:31] Against e3} e3 {[%emt 0:01:10]} ({Don't take} 20... Bxa2 21. Rxe4 Rxe4 22. Bxe4 $14) (20... h5 $5 {[%cal Rh5g4]} 21. Qd1 Qh7 $11) 21. fxe3 {[%emt 0:00:37]} dxe3 {[%emt 0:02:39]} 22. Rxe3 {[%emt 0:05:45]} Bg7 {[%emt 0:03:09]} (22... Rd8 $15 23. Bc1 Bh6) 23. Rxe8+ {[%emt 0:00:39]} (23. Bxc6 $16 bxc6 24. Kg2) 23... Rxe8 $11 {[%emt 0:00:02]} 24. h3 {[%emt 0:01:52]} Bxb2 {[%emt 0:02:59]} 25. Kh2 {[%emt 0:02:00]} Rg8 {[%emt 0:00:42] Prevents c3.} 26. Qh5 {[%emt 0:01:46]} (26. Qf3 $14 Bxa2 27. Re1) 26... Bd4 {[%emt 0:01:26]} (26... Qg7 $5 {[%cal Rg7g3]} 27. Be1 Be5 28. Bxc6 bxc6 $15) 27. Re1 {[%emt 0:02:43]} Bf7 {[%emt 0:01:04] Against c3} ({Don't play} 27... Bxa2 28. c3 Bf6 29. Qxc5 $16) (27... Qf7 {simplifies} 28. Qxf7 Bxf7 29. Ne6 Kc8) 28. Qxh7 {[%emt 0:03:12]} Bf2 $2 {[%emt 0:01:57] [#] Against c3} (28... Bxa2 $11 {and Black has nothing to worry.} 29. Qxc7+ Kxc7) 29. Qxg8+ $3 $18 {[%emt 0:00:42][%mdl 512]} Bxg8 {[%emt 0:00:16]} 30. Re8+ {[%emt 0:00:01]} Qc8 {[%emt 0:03:21]} 31. Rxc8+ {[%emt 0:00:26]} Kxc8 {[%emt 0:00:02]} 32. a3 {[%emt 0:03:02]} Nd4 $2 {[%emt 0:02:04]} (32... Ne5 33. Be4 Nc4) 33. Be4 {[%emt 0:01:39]} (33. Nd3 $142) 33... Nb5 {[%emt 0:00:19]} 34. Bc1 {[%emt 0:01:57]} Nd6 {[%emt 0:00:39]} 35. Bg6 {[%emt 0:00:20]} b5 {[%emt 0:01:41]} 36. h4 {[%emt 0:00:16][%cal Bh3h4,Bh4h5,Bh5h6,Bh6h7][%mdl 32]} a5 {[%emt 0:02:19]} (36... Kd7 {is a better defense.} 37. h5 Bd4) 37. h5 {[%emt 0:01:33]} b4 {[%emt 0:00:31]} 38. h6 {[%emt 0:00:55] a4 is the strong threat.} Bd4 {[%emt 0:00:30]} (38... bxa3 $142 39. Bxa3 a4) 39. h7 {[%emt 0:00:56]} Bf7 {[%emt 0:01:24] [#]} 40. Bxf7 {[%emt 0:01:51]} (40. Be3 $142 $1 {[%mdl 512] Strongly threatening Bxd4.} Bc3 41. a4) 40... Nxf7 {[%emt 0:00:02][%mdl 4096] Endgame KBN-KBN} 41. Ne6 {[%emt 0:30:14]} Bc3 {[%emt 0:36:46]} 42. Nxc5 {[%emt 0:00:20]} bxa3 {[%emt 0:00:12]} 43. Bxa3 {[%emt 0:00:22]} Ng5 {[%emt 0:00:13]} 44. g4 {[%emt 0:05:49]} ({Better is} 44. Na4 $18 Bf6 45. g4 (45. Nb6+ Kb7 $16)) 44... Nxh7 $16 {[%emt 0:01:28]} 45. Ne4 {[%emt 0:00:41]} Be5+ {[%emt 0:00:55] [#]} (45... Bg7 $16) 46. Kh3 $1 $18 {[%emt 0:00:46]} Kd7 {[%emt 0:00:00]} 47. Kg2 $2 {[%emt 0:00:00]} (47. g5 $18) 47... Kc6 {[%emt 0:00:00]} (47... Bg7 $14) 48. c4 {[%emt 0:00:00]} Bf4 {[%emt 0:00:00]} (48... Bg7 $1 $14) 49. Kf3 $16 {[%emt 0:00:00]} Bh6 {[%emt 0:00:00]} 50. Ke2 {[%emt 0:00:00]} (50. Bb2 $16) 50... Nf8 {[%emt 0:00:00]} 51. g5 {[%emt 0:00:00] White is more active.} Bg7 {[%emt 0:00:00]} 52. Bxf8 {[%emt 0:00:00]} Bxf8 $14 {[%emt 0:00:00] KB-KN} 53. Kd3 {[%emt 0:00:00] aiming for Kc3.} Bg7 {[%emt 0:00:00]} 54. Kc2 {[%emt 0:00:00] And now Kb3 would win.} (54. Nc3 $5 {[%cal Rc3a4]}) 54... a4 {[%emt 0:00:00] The position is equal.} 55. Kb1 {[%emt 0:00:00]} Kb6 {[%emt 0:00:00]} 56. Ka2 {[%emt 0:00:00]} Ka5 {[%emt 0:00:00]} 57. Ka3 {[%emt 0:00:00] Threatens to win with Nd6.} (57. c5 $5) 57... Bf8+ {[%emt 0:00:00]} 58. c5 {[%emt 0:00:00] Hoping for Nd6.} Kb5 {[%emt 0:00:00]} 59. g6 {[%emt 0:00:00]} Bh6 {[%emt 0:00:00]} 60. Kb2 {[%emt 0:00:00]} Bg7+ {[%emt 0:00:00]} 61. Kc2 {[%emt 0:00:00]} Bh8 {[%emt 0:00:16] Black defended with fortune.   Weighted Error Value: White=0.31/Black=0.30} 1/2-1/2

[Event "FIDE WSCC 50 2022"]
[Site "Assisi"]
[Date "2022.11.23"]
[Round "8.9"]
[White "Paschall, William"]
[Black "Rewitz, Poul"]
[Result "1-0"]
[ECO "A11"]
[WhiteElo "2343"]
[BlackElo "2172"]
[Annotator "TA"]
[PlyCount "67"]
[EventDate "2022.11.14"]
[EventType "swiss"]
[EventCountry "ITA"]
[SourceTitle "playchess.com"]
[Source "ChessBase"]
[SourceQuality "1"]
[TimeControl "40/5400+30:1800+30"]

{[%evp 9,67,1,25,15,26,22,45,-13,-16,-40,0,1,-12,-50,-55,-63,-64,-66,-60,-85,-67,-72,-25,-32,-25,-40,-16,-49,-27,-36,-17,-63,72,46,206,177,400,302,367,327,488,475,560,525,1019,984,1210,1200,6725,2422,29997,29992,29994,29994,29994,29995,29995,29993,29993,571]} 1. c4 {[%emt 0:00:26]} c6 {[%emt 0:00:54]} 2. Nf3 {[%emt 0:01:37]} d5 {[%emt 0:03:09]} 3. e3 {[%emt 0:01:38]} Nf6 {[%emt 0:03:24]} 4. Nc3 {[%emt 0:01:44]} e6 {[%emt 0:04:53]} 5. b3 {[%emt 0:03:04]} Be7 {[%emt 0:00:53]} 6. Bb2 {[%emt 0:02:54] A11: English Opening: 1...c6.} O-O {[%emt 0:00:19]} 7. Qc2 {[%emt 0:02:21]} a6 {[%emt 0:01:34]} 8. Rg1 {[%emt 0:10:58] [#]} (8. d4 $14) 8... c5 $146 {[%emt 0:06:29]} ({Predecessor:} 8... b5 9. g4 Nbd7 10. g5 Ne8 11. Bd3 g6 12. h4 Ng7 13. O-O-O bxc4 14. bxc4 Rb8 {½-½ (67) Agrest,E (2583)-Brynell,S (2412) Malmo 2019}) 9. g4 {[%emt 0:02:54][%cal Bg2g4,Bg4g5][%mdl 32]} d4 {[%emt 0:18:25] Against g5} (9... Nc6 {keeps more tension.} 10. g5 Nh5 11. Na4 Nb4) 10. g5 {[%emt 0:04:36]} Nh5 {[%emt 0:01:02]} 11. Ne4 {[%emt 0:13:39]} Nc6 {[%emt 0:01:41] Against Ne5} 12. a3 {[%emt 0:02:05]} e5 {[%emt 0:05:27]} 13. Bd3 {[%emt 0:05:09][%cal Bf1d3,Bd3e4,Be4d5][%mdl 32]} g6 {[%emt 0:02:55]} 14. Ng3 {[%emt 0:01:00]} Ng7 {[%emt 0:11:31]} (14... Bxg5 $2 15. Nxh5 Be7 16. Be4 $18) 15. h4 {[%emt 0:02:58]} a5 {[%emt 0:03:19]} ({Black should try} 15... Qc7 $17) 16. Be4 {[%emt 0:01:03]} Qc7 {[%emt 0:06:45]} 17. h5 {[%emt 0:04:48]} a4 {[%emt 0:01:16]} 18. bxa4 {[%emt 0:01:41]} Be6 {[%emt 0:04:09]} 19. Bd5 {[%emt 0:04:50]} Rfd8 {[%emt 0:01:09] White must now prevent ...Rxd5.} ({Much weaker is} 19... Nxh5 20. Nxh5 gxh5 21. g6 $14) (19... Rad8 $5 {[%cal Rd8d5]}) 20. hxg6 {[%emt 0:31:05]} (20. h6 $11 {was preferrable.} Nf5 21. Nxf5 Bxf5 22. d3) 20... hxg6 {[%emt 0:02:15]} (20... fxg6 $15 {stays ahead.} 21. Bxe6+ Nxe6) 21. Qe4 {[%emt 0:00:00] Strongly threatening Qh4.} (21. Rh1 {looks sharper.} Nf5 22. Bxe6 fxe6 23. O-O-O) 21... Kf8 $2 {[%emt 0:08:54] This costs Black the game.} (21... Rxa4 $2 22. Qh4 Bxd5 23. cxd5 (23. Rh1 Nh5 $18) 23... dxe3 24. Qxa4 $18) (21... Bf8 $14) 22. Rh1 $18 {[%emt 0:00:00][%cal Rh1h8]} Ke8 $2 {[%emt 0:00:13]} (22... Nf5 {was called for.} 23. Bxe6 fxe6) 23. Rh8+ {[%emt 0:00:00]} Bf8 {[%emt 0:00:15]} 24. d3 {[%emt 0:00:00]} Rxa4 {[%emt 0:05:56]} (24... Ke7 {is a better defense.} 25. Bxc6 Qxc6 26. Qxe5 Qxf3 27. Qc7+ (27. exd4 Kd7 $11) 27... Rd7 28. Qxc5+ Rd6) 25. Bxc6+ {[%emt 0:00:00]} bxc6 {[%emt 0:00:31]} 26. Nxe5 {[%emt 0:00:00]} dxe3 {[%emt 0:00:21]} 27. Qxe3 {[%emt 0:00:00]} Qb6 {[%emt 0:01:44]} 28. Bc3 {[%emt 0:00:00]} Qb3 {[%emt 0:03:20] [#]} 29. Ne4 {[%emt 0:00:00]} (29. Qxc5 $142 $1 Qxc3+ 30. Kf1 Bh3+ 31. Kg1) 29... Nf5 {[%emt 0:01:16]} 30. Qxc5 {[%emt 0:00:00][%csl Gc5][%cal Rh8f8] White mates.} Rd6 {[%emt 0:00:39]} 31. Nxd6+ {[%emt 0:05:30]} Nxd6 {[%emt 0:00:08]} 32. Qxc6+ {[%emt 0:00:00]} Ke7 {[%emt 0:00:16]} 33. Qc7+ {[%emt 0:00:00]} Ke8 {[%emt 0:00:09]} 34. Rxf8+ {[%emt 0:00:00] Weighted Error Value: White=0.16 (very precise) /Black=0.74} (34. Bd4 $142 Rxa3 35. Qc6+ Ke7 {[#]} 36. Nxg6+ $1 {[%mdl 512]} fxg6 37. Bf6+ Kf7 38. Qc7+ Bd7 39. Qxd7+ Be7 40. Qxe7#) 1-0

[Event "FIDE WSCC 50 2022"]
[Site "Assisi"]
[Date "2022.11.23"]
[Round "8.10"]
[White "Antonio, Rogelio Jr"]
[Black "Loeffler, Markus"]
[Result "1-0"]
[ECO "B51"]
[WhiteElo "2397"]
[BlackElo "2260"]
[Annotator "TA"]
[PlyCount "43"]
[EventDate "2022.11.14"]
[EventType "swiss"]
[EventCountry "ITA"]
[SourceTitle "playchess.com"]
[Source "ChessBase"]
[SourceQuality "1"]
[TimeControl "40/5400+30:1800+30"]

{[%evp 9,43,11,21,16,54,46,55,55,64,60,61,72,69,31,132,133,134,132,131,131,131,131,133,136,136,136,133,131,135,127,124,127,133,126,579,569]} 1. e4 {[%emt 0:00:55]} c5 {[%emt 0:00:08]} 2. Nf3 {[%emt 0:02:03]} d6 {[%emt 0:00:09]} 3. Bb5+ {[%emt 0:01:13]} Nd7 {[%emt 0:00:15]} 4. c3 {[%emt 0:04:04]} Ngf6 {[%emt 0:01:50]} 5. Qe2 {[%emt 0:01:55]} g6 {[%emt 0:05:31]} 6. d4 {[%emt 0:03:45] B51: Sicilian: Moscow Variation (3 Bb5+) without 3...Bd7.} Bg7 {[%emt 0:09:09]} 7. e5 {[%emt 0:06:01]} dxe5 {[%emt 0:00:49]} 8. dxe5 {[%emt 0:00:11] White is slightly better.} Nd5 {[%emt 0:00:37]} 9. e6 {[%emt 0:03:35] Against a6} fxe6 {[%emt 0:00:17]} 10. Ng5 {[%emt 0:00:12]} (10. Qxe6 $6 Nc7 11. Qe2 Nxb5 12. Qxb5 O-O $11) 10... Nc7 {[%emt 0:10:55]} 11. Bf4 {[%emt 0:00:40] [#]} ({Much weaker is} 11. Nxe6 Nxe6 12. Qxe6 a6 $15) ({Of course not} 11. Qf3 Bf6 12. Be2 Ne5 $11) (11. O-O {simplifies} O-O 12. Na3 h6 13. Nxe6 Nxe6 14. Qxe6+ Kh7 15. Qe3) 11... Bf6 $146 {[%emt 0:00:30]} (11... Nxb5 12. Nxe6 (12. Qxb5 Qb6 $15) 12... Qb6 13. Nxg7+ Kf7 14. Bh6 $16) (11... e5 $1 $14 12. Qc4 (12. Bxe5 Bxe5 13. Qxe5 O-O $11) 12... Rf8) ({Predecessor:} 11... e5 12. Bxe5 Bxe5 13. Qxe5 O-O 14. Bc4+ e6 15. Qe3 Nf6 16. Qxc5 b5 17. Bb3 Bb7 {0-1 (23) Sedina,E (2294)-Stijve,T (2263) Flims 2021}) 12. Bxc7 $16 {[%emt 0:05:42][%mdl 64] [#] Remove Defender. White has more active pieces.} ({Not} 12. Nxe6 Nxe6 13. Qxe6 a6 14. Bxd7+ (14. Bc4 $2 Ne5 $19) 14... Bxd7 $15) 12... Qxc7 {[%emt 0:00:28]} 13. Nxe6 {[%emt 0:00:07]} Qe5 {[%emt 0:02:55]} 14. Qxe5 {[%emt 0:00:35]} Bxe5 {[%emt 0:00:03]} 15. Nxc5 {[%emt 0:00:12]} a6 {[%emt 0:00:46]} 16. Nxd7 {[%emt 0:02:30]} Bxd7 {[%emt 0:00:12]} 17. Bxd7+ {[%emt 0:00:09]} Kxd7 {[%emt 0:00:04]} 18. Nd2 {[%emt 0:00:41]} Kc6 {[%emt 0:01:10]} 19. Ke2 {[%emt 0:04:05]} Rad8 {[%emt 0:04:25]} 20. Rad1 {[%emt 0:02:43]} Rd5 {[%emt 0:02:36]} 21. Nf3 {[%emt 0:00:54] Rxd5 is the strong threat.} Rhd8 {[%emt 0:00:20][%mdl 8192] [#]} (21... Ra5 $16 22. Rd2 Bg7) 22. c4 $1 {[%emt 0:00:19] Weighted Error Value: White=0.04 (flawless) /Black=0.53} 1-0

[Event "FIDE WSCC 50 2022"]
[Site "Assisi"]
[Date "2022.11.23"]
[Round "8.11"]
[White "Dishman, Stephen"]
[Black "Zeller, Frank"]
[Result "1/2-1/2"]
[ECO "A45"]
[WhiteElo "2255"]
[BlackElo "2359"]
[Annotator "TA"]
[PlyCount "51"]
[EventDate "2022.11.14"]
[EventType "swiss"]
[EventCountry "ITA"]
[SourceTitle "playchess.com"]
[Source "ChessBase"]
[SourceQuality "1"]
[TimeControl "40/5400+30:1800+30"]

{[%evp 9,51,35,47,21,41,61,39,55,48,48,71,52,100,68,69,68,61,66,71,52,70,50,52,19,39,33,38,23,37,32,44,45,46,39,46,46,46,46,59,51,47,32,41,52]} 1. d4 {[%emt 0:00:04]} Nf6 {[%emt 0:00:23]} 2. Bg5 {[%emt 0:00:07]} Ne4 {[%emt 0:00:35]} 3. Bf4 {[%emt 0:00:07]} c5 {[%emt 0:00:35]} 4. f3 {[%emt 0:00:12]} Nf6 {[%emt 0:00:48]} 5. dxc5 {[%emt 0:00:22]} b6 {[%emt 0:01:08]} 6. Nc3 {[%emt 0:00:20] White wants to play Nb5. A45: Trompowsky Attack.} bxc5 {[%emt 0:01:06]} 7. e4 {[%emt 0:00:09]} Nc6 {[%emt 0:00:23]} 8. Bb5 {[%emt 0:00:12]} Bb7 {[%emt 0:04:14]} 9. Qd2 {[%emt 0:00:17]} d6 {[%emt 0:08:55] [#]} 10. O-O-O $146 {[%emt 0:04:55] Black must now prevent e5. White is more active.} ({Predecessor:} 10. Nge2 a6 11. Ba4 Nd7 12. Nd5 e6 13. Ne3 Nb6 14. Bxc6+ Bxc6 15. O-O-O e5 16. Bg3 {1-0 (31) Dean,P (2135)-Hoemske,M (2297) ICCF email 2015}) 10... Qa5 {[%emt 0:10:36]} (10... Nd7 $14) 11. e5 {[%emt 0:05:23]} dxe5 {[%emt 0:03:11]} 12. Bxe5 {[%emt 0:00:20]} Rd8 {[%emt 0:00:15]} 13. Qxd8+ {[%emt 0:00:20]} Qxd8 {[%emt 0:00:02]} 14. Rxd8+ {[%emt 0:00:10]} Kxd8 {[%emt 0:00:04]} 15. Bf4 {[%emt 0:02:15]} e6 {[%emt 0:10:12]} 16. Nge2 {[%emt 0:00:55]} Be7 {[%emt 0:00:59]} 17. Rd1+ {[%emt 0:05:35]} Kc8 {[%emt 0:00:06]} 18. Be3 {[%emt 0:23:49]} Ne5 {[%emt 0:15:50]} 19. Ng3 {[%emt 0:10:25] White is slightly better.} h5 {[%emt 0:10:21]} 20. h3 {[%emt 0:04:52]} h4 {[%emt 0:13:07]} 21. Nge4 {[%emt 0:02:20]} Nxe4 {[%emt 0:00:29]} 22. Nxe4 {[%emt 0:00:26]} Bxe4 {[%emt 0:00:27]} 23. fxe4 {[%emt 0:00:04]} Kc7 {[%emt 0:00:58]} 24. c3 {[%emt 0:07:05]} Bd6 {[%emt 0:01:05]} 25. Be2 {[%emt 0:00:34]} f6 {[%emt 0:05:28]} 26. Kc2 {[%emt 0:01:53] Weighted Error Value: White=0.10 (very precise) /Black=0.10 (very precise)} 1/2-1/2